fUSD/lending_fUSD_20260620
["ID","MTS","AMOUNT","RATE_DAILY","PERIOD"]
[425833551,1781959844000,-151.0,0.00022471,2]
[425833574,1781959844000,-500.0,0.00022471,2]
[425833552,1781959844000,-151.0,0.00022471,2]
[425833576,1781959844000,-151.0,0.00022471,2]
[425833595,1781959844000,-292.978447,0.00022799,14]
[425833597,1781959844000,-300.0,0.000229,8]
[425833600,1781959844000,-509.0,0.00023,2]
[425833599,1781959844000,-364.0,0.00023,2]
[425833598,1781959844000,-1599.64586199,0.0002292,2]
[425833601,1781959844000,-190.0,0.00023,2]
[425833605,1781959844000,-200.0,0.00023019,2]
[425833602,1781959844000,-165.0,0.00023,2]
[425833606,1781959844000,-151.0,0.00023019,2]
[425833604,1781959844000,-2023.17,0.00023015,2]
[425833607,1781959844000,-166.1,0.0002309,2]
[425833609,1781959844000,-4906.866969,0.000231,2]
[425833610,1781959844000,-961.4944576,0.000231,2]
[425833608,1781959844000,-151.0,0.00023097,7]
[425833611,1781959844000,-40756.35589125,0.000231,2]
[425833596,1781959844000,-191.825619,0.00022799,14]
[425833592,1781959844000,-407.55762118,0.00022632,7]
[425833603,1781959844000,-168.0,0.00023,2]
[425833594,1781959844000,-191.612037,0.00022799,14]
[425833593,1781959844000,-2665.17985719,0.00022639,2]
[425833571,1781959844000,-500.0,0.00022471,2]
[425833573,1781959844000,-151.0,0.00022471,2]
[425833578,1781959844000,-151.0,0.00022471,2]
[425833579,1781959844000,-151.0,0.00022471,2]
[425833589,1781959844000,-151.0,0.00022471,2]
[425833590,1781959844000,-150.0,0.0002254,2]
[425833581,1781959844000,-151.0,0.00022471,2]
[425833577,1781959844000,-500.0,0.00022471,2]
[425833582,1781959844000,-151.0,0.00022471,2]
[425833583,1781959844000,-500.0,0.00022471,2]
[425833584,1781959844000,-151.0,0.00022471,2]
[425833586,1781959844000,-500.0,0.00022471,2]
[425833585,1781959844000,-151.0,0.00022471,2]
[425833587,1781959844000,-151.0,0.00022471,2]
[425833588,1781959844000,-242.49339917,0.00022471,2]
[425833580,1781959844000,-500.0,0.00022471,2]
[425833591,1781959844000,-154.43545956,0.00022632,7]
[425833617,1781959845000,-212.1,0.0002,2]
[425833615,1781959845000,-158.1,0.00019518,2]
[425833620,1781959845000,-4094.45150895,0.00022,2]
[425833616,1781959845000,-291.9,0.0002,2]
[425833619,1781959845000,-158.1,0.00021958,2]
[425833618,1781959845000,-504.0,0.00020984,2]
[425833623,1781959846000,-1258.9937147,0.00022,2]
[425833621,1781959846000,-405.8537147,0.00021967,3]
[425833622,1781959846000,-98.1462853,0.00021967,3]
[425833624,1781959846000,-6349.59477635,0.00022,2]
[425833629,1781959846000,-1177.17283711,0.000231,2]
[425833626,1781959846000,-55202.24455621,0.000231,2]
[425833627,1781959846000,-3005.57868411,0.000231,2]
[425833628,1781959846000,-2148.19825743,0.000231,2]
[425833625,1781959846000,-504.0,0.00022951,4]
[425833868,1781959928000,558.58611259,7.945e-05,2]
[425833869,1781959928000,363.14675241,7.945e-05,2]
[425833873,1781961031000,-150.0,0.00015403,2]
[425833874,1781961031000,-165.31634871,0.00015403,2]
[425833876,1781961031000,-308.92464899,0.00015404,2]
[425833875,1781961031000,-335.33958179,0.00015404,2]
[425833877,1781961032000,-98.73331655,0.00015404,2]
[425833879,1781961032000,-335.97135701,0.00015404,2]
[425833878,1781961032000,-500.0,0.00015404,2]
[425833881,1781961032000,-170.45532644,0.00015404,2]
[425833880,1781961032000,-500.0,0.00015404,2]
[425833901,1781961040000,-329.54467356,0.00015404,2]
[425833902,1781961040000,-500.0,0.00015404,2]
[425833903,1781961040000,-500.0,0.00015404,2]
[425833904,1781961040000,-500.0,0.00015404,2]
[425833905,1781961040000,-384.57888873,0.00015404,2]
[425833906,1781961040000,-115.42111127,0.00015404,2]
[425833907,1781961040000,-318.14521871,0.00015404,2]
[425833909,1781961040000,-500.0,0.00015404,2]
[425833910,1781961040000,-179.36931728,0.00015406,7]
[425833911,1781961040000,-250.0,0.00015407,2]
[425833908,1781961040000,-500.0,0.00015404,2]
[425833912,1781961040000,-30745.3320079,0.00015407,2]
[425833921,1781961042000,-279.88886598,0.00015965,2]
[425833919,1781961042000,-3382.2479921,0.00015407,2]
[425833922,1781961042000,-44278.0,0.00016,2]
[425833920,1781961042000,-179.36931728,0.00015714,7]
[425833923,1781961042000,-179.36931728,0.00016176,7]
[425833925,1781961042000,-502.7369,0.00016238,2]
[425833926,1781961042000,-500.0,0.00016438,2]
[425833924,1781961042000,-150.11,0.00016238,2]
[425833949,1781961043000,-474.68,0.00019201,2]
[425833950,1781961043000,-166.66,0.00019266,2]
[425833953,1781961043000,-321.33201148,0.00019463,2]
[425833952,1781961043000,-500.0,0.00019425,2]
[425833951,1781961043000,-2013.9,0.00019267,2]
[425833955,1781961043000,-166.66,0.00019663,2]
[425833956,1781961043000,-162.66,0.00019663,2]
[425833958,1781961043000,-500.0,0.00019999,2]
[425833954,1781961043000,-152.21,0.00019467,2]
[425833959,1781961043000,-500.0,0.00019999,2]
[425833960,1781961043000,-319.0,0.0002,2]
[425833961,1781961043000,-477.0,0.0002,2]
[425833966,1781961043000,-152.0,0.0002,2]
[425833964,1781961043000,-155.0,0.0002,2]
[425833962,1781961043000,-155.0,0.0002,2]
[425833963,1781961043000,-186.0,0.0002,2]
[425833946,1781961043000,-166.66,0.00018869,2]
[425833957,1781961043000,-2013.9,0.00019737,2]
[425833948,1781961043000,-1672.7364795,0.00018915,2]
[425833936,1781961043000,-179.36931731,0.00017255,7]
[425833944,1781961043000,-2013.9,0.00018797,2]
[425833927,1781961043000,-500.0,0.00016438,2]
[425833928,1781961043000,-557.06897601,0.00016438,2]
[425833930,1781961043000,-500.0,0.00016635,2]
[425833929,1781961043000,-5528.0,0.000166,3]
[425833931,1781961043000,-500.0,0.00016635,2]
[425833933,1781961043000,-179.36931728,0.00016638,7]
[425833932,1781961043000,-500.0,0.00016635,2]
[425833934,1781961043000,-168.55,0.00016712,2]
[425833935,1781961043000,-250.0,0.00016947,2]
[425833938,1781961043000,-5528.0,0.000173,5]
[425833940,1781961043000,-1555.5,0.00017819,2]
[425833939,1781961043000,-281.57647768,0.00017676,2]
[425833937,1781961043000,-1500.0,0.00017271,2]
[425833941,1781961043000,-1613.0535,0.00018367,2]
[425833965,1781961043000,-159.0,0.0002,2]
[425833942,1781961043000,-151.0,0.0001841,2]
[425833945,1781961043000,-209.79,0.00018818,2]
[425833947,1781961043000,-206.44,0.00018896,2]
[425833968,1781961043000,-504.0,0.0002,2]
[425833943,1781961043000,-1320.08,0.00018533,2]
[425833969,1781961043000,-166.0,0.0002,2]
[425833994,1781961043000,-500.0,0.00020985,2]
[425833993,1781961043000,-500.0,0.00020985,2]
[425833995,1781961043000,-500.0,0.00020986,2]
[425833997,1781961043000,-477.0,0.00021,2]
[425833996,1781961043000,-319.0,0.00021,2]
[425833999,1781961043000,-167.0,0.00021,2]
[425834000,1781961043000,-152.0,0.00021,2]
[425834001,1781961043000,-154.0,0.00021,2]
[425833992,1781961043000,-500.0,0.00020985,2]
[425834003,1781961043000,-534.23,0.00021273,2]
[425834002,1781961043000,-504.0,0.00021053,3]
[425834006,1781961043000,-1510.05,0.00021273,2]
[425834008,1781961043000,-169.98,0.00021447,2]
[425834009,1781961043000,-477.0,0.00021836,2]
[425834005,1781961043000,-19685.52,0.00021273,2]
[425834007,1781961043000,-152.21,0.00021414,2]
[425834010,1781961043000,-5000.0,0.00021918,2]
[425833967,1781961043000,-154.0,0.0002,2]
[425834004,1781961043000,-1837.48,0.00021273,2]
[425833991,1781961043000,-500.0,0.00020985,2]
[425833998,1781961043000,-186.0,0.00021,2]
[425833988,1781961043000,-500.0,0.00020985,2]
[425833971,1781961043000,-2013.9,0.00020207,2]
[425833990,1781961043000,-500.0,0.00020985,2]
[425833973,1781961043000,-151.0,0.00020381,2]
[425833972,1781961043000,-309.58107794,0.00020352,2]
[425833970,1781961043000,-166.66,0.00020061,2]
[425833975,1781961043000,-150.0,0.00020488,2]
[425833977,1781961043000,-166.66,0.00020855,2]
[425833976,1781961043000,-2013.9,0.00020677,2]
[425833982,1781961043000,-501.0269189,0.00020985,2]
[425833974,1781961043000,-166.66,0.00020458,2]
[425833981,1781961043000,-500.0,0.00020985,2]
[425833980,1781961043000,-526.11229447,0.00020985,2]
[425833978,1781961043000,-500.0,0.00020985,2]
[425833979,1781961043000,-502.70111222,0.00020985,2]
[425833987,1781961043000,-500.0,0.00020985,2]
[425833986,1781961043000,-508.87990619,0.00020985,2]
[425833984,1781961043000,-500.0,0.00020985,2]
[425833989,1781961043000,-213.8453188,0.00020985,2]
[425833983,1781961043000,-500.0,0.00020985,2]
[425834024,1781961044000,-500.0,0.00022203,2]
[425834025,1781961044000,-500.0,0.00022203,2]
[425834022,1781961044000,-500.0,0.00022203,2]
[425834023,1781961044000,-151.0,0.00022203,2]
[425834021,1781961044000,-151.0,0.00022203,2]
[425834020,1781961044000,-151.0,0.00022203,2]
[425834019,1781961044000,-151.0,0.00022203,2]
[425834016,1781961044000,-1409.0,0.00022,2]
[425834017,1781961044000,-504.0,0.00022105,4]
[425834015,1781961044000,-154.0,0.00022,2]
[425834013,1781961044000,-186.0,0.00022,2]
[425834014,1781961044000,-152.0,0.00022,2]
[425834011,1781961044000,-319.0,0.00022,2]
[425834012,1781961044000,-477.0,0.00022,2]
[425834026,1781961044000,-151.0,0.00022203,2]
[425834018,1781961044000,-1514.0,0.00022141,2]
[425834028,1781961044000,-151.0,0.00022203,2]
[425834031,1781961044000,-151.0,0.00022203,2]
[425834029,1781961044000,-500.0,0.00022203,2]
[425834027,1781961044000,-500.0,0.00022203,2]
[425834045,1781961044000,-48383.7353336,0.00022611,2]
[425834043,1781961044000,-231.61581618,0.00022407,2]
[425834041,1781961044000,-477.0,0.00022247,2]
[425834042,1781961044000,-151.0,0.00022353,2]
[425834039,1781961044000,-500.0,0.00022203,2]
[425834040,1781961044000,-500.0,0.00022203,2]
[425834038,1781961044000,-151.0,0.00022203,2]
[425834044,1781961044000,-150.0,0.0002254,2]
[425834035,1781961044000,-500.0,0.00022203,2]
[425834036,1781961044000,-151.0,0.00022203,2]
[425834034,1781961044000,-500.0,0.00022203,2]
[425834030,1781961044000,-151.0,0.00022203,2]
[425834032,1781961044000,-500.0,0.00022203,2]
[425834033,1781961044000,-151.0,0.00022203,2]
[425834037,1781961044000,-500.0,0.00022203,2]
[425834067,1781961045000,-847.68300709,0.00023378,2]
[425834064,1781961045000,-500.0,0.00023264,2]
[425834069,1781961045000,-196.0409863,0.00023622,7]
[425834068,1781961045000,-1406.98985121,0.00023522,2]
[425834070,1781961045000,-6904.39599961,0.00023631,2]
[425834079,1781961045000,-152.0,0.00023744,2]
[425834072,1781961045000,-171.560435,0.00023726,14]
[425834076,1781961045000,-721.12765534,0.00023744,2]
[425834071,1781961045000,-150.0,0.00023667,2]
[425834074,1781961045000,-174.61919141,0.00023744,2]
[425834077,1781961045000,-151.0,0.00023744,2]
[425834075,1781961045000,-578.20924308,0.00023744,2]
[425834078,1781961045000,-151.13162861,0.00023744,2]
[425834081,1781961045000,-152.0,0.00023744,2]
[425834065,1781961045000,-176.197204,0.00023269,14]
[425834073,1781961045000,-1030.0,0.00023744,2]
[425834062,1781961045000,-504.0,0.00023158,5]
[425834053,1781961045000,-324.8970272,0.00022822,2]
[425834063,1781961045000,-500.0,0.00023212,2]
[425834082,1781961045000,-500.0,0.00023744,2]
[425834047,1781961045000,-1365.97341134,0.00022611,2]
[425834046,1781961045000,-700.37,0.00022611,2]
[425834049,1781961045000,-6904.39599966,0.00022722,2]
[425834048,1781961045000,-127262.06920486,0.00022611,2]
[425834050,1781961045000,-425.48941759,0.00022746,2]
[425834052,1781961045000,-101031.8700052,0.00022822,2]
[425834051,1781961045000,-537.0495643,0.00022822,2]
[425834054,1781961045000,-7709.64028,0.00022822,2]
[425834055,1781961045000,-1922.9889152,0.00022822,2]
[425834058,1781961045000,-186.0,0.00023,2]
[425834059,1781961045000,-152.0,0.00023,2]
[425834057,1781961045000,-477.0,0.00023,2]
[425834056,1781961045000,-319.0,0.00023,2]
[425834061,1781961045000,-500.0,0.000231,2]
[425834060,1781961045000,-154.0,0.00023,2]
[425834080,1781961045000,-151.0,0.00023744,2]
[425834066,1781961045000,-152.21,0.0002336,2]
[425834084,1781961045000,-500.0,0.00023744,2]
[425834105,1781961045000,-151.0,0.00023909,2]
[425834106,1781961045000,-151.0,0.00023964,2]
[425834107,1781961045000,-319.0,0.00024,2]
[425834104,1781961045000,-150.0,0.00023898,2]
[425834108,1781961045000,-477.0,0.00024,2]
[425834110,1781961045000,-152.0,0.00024,2]
[425834112,1781961045000,-154.0,0.00024,2]
[425834109,1781961045000,-186.0,0.00024,2]
[425834115,1781961045000,-171.560435,0.00024049,120]
[425834114,1781961045000,-151.0,0.00024019,2]
[425834117,1781961045000,-151.0,0.00024129,2]
[425834116,1781961045000,-151.0,0.00024074,2]
[425834118,1781961045000,-500.0,0.00024173,2]
[425834119,1781961045000,-151.0,0.00024184,2]
[425834083,1781961045000,-152.0,0.00023744,2]
[425834102,1781961045000,-151.0,0.00023799,2]
[425834103,1781961045000,-151.0,0.00023854,2]
[425834113,1781961045000,-151.0,0.00024018,2]
[425834101,1781961045000,-500.0,0.00023744,2]
[425834100,1781961045000,-152.0,0.00023744,2]
[425834085,1781961045000,-152.0,0.00023744,2]
[425834086,1781961045000,-500.0,0.00023744,2]
[425834089,1781961045000,-152.0,0.00023744,2]
[425834088,1781961045000,-500.0,0.00023744,2]
[425834092,1781961045000,-500.0,0.00023744,2]
[425834091,1781961045000,-152.0,0.00023744,2]
[425834090,1781961045000,-500.0,0.00023744,2]
[425834087,1781961045000,-152.0,0.00023744,2]
[425834094,1781961045000,-152.0,0.00023744,2]
[425834096,1781961045000,-152.0,0.00023744,2]
[425834095,1781961045000,-500.0,0.00023744,2]
[425834097,1781961045000,-500.0,0.00023744,2]
[425834098,1781961045000,-152.0,0.00023744,2]
[425834099,1781961045000,-500.0,0.00023744,2]
[425834120,1781961045000,-504.0,0.00024211,6]
[425834093,1781961045000,-500.0,0.00023744,2]
[425834139,1781961046000,-158.25,0.00024658,2]
[425834136,1781961046000,-150.0,0.00024658,2]
[425834137,1781961046000,-1000.0,0.00024658,2]
[425834133,1781961046000,-912.67601067,0.00024622,7]
[425834135,1781961046000,-1847.3103,0.00024622,7]
[425834134,1781961046000,-1365.3087284,0.00024622,7]
[425834131,1781961046000,-151.0,0.00024566,2]
[425834132,1781961046000,-517.35526451,0.00024622,7]
[425834127,1781961046000,-160.0,0.00024316,2]
[425834130,1781961046000,-6904.39599961,0.00024539,2]
[425834128,1781961046000,-151.0,0.00024324,2]
[425834126,1781961046000,-216.28381402,0.00024316,2]
[425834125,1781961046000,-151.0,0.00024294,2]
[425834124,1781961046000,-151.0,0.00024292,2]
[425834123,1781961046000,-151.13162861,0.00024292,2]
[425834121,1781961046000,-151.0,0.00024239,2]
[425834129,1781961046000,-158.1,0.00024397,2]
[425834138,1781961046000,-184.31,0.00024658,2]
[425834122,1781961046000,-181.08010149,0.00024292,2]
[425834142,1781961046000,-151.13162861,0.0002484,2]
[425834140,1781961046000,-176.2,0.00024658,2]
[425834157,1781961046000,-151.13162861,0.00025388,2]
[425834158,1781961046000,-194.81192824,0.00025448,2]
[425834156,1781961046000,-194.72792766,0.00025388,2]
[425834155,1781961046000,-29.47840324,0.00025307,2]
[425834152,1781961046000,-161.31855254,0.00025114,2]
[425834153,1781961046000,-504.0,0.00025263,7]
[425834150,1781961046000,-154.0,0.00025,2]
[425834154,1781961046000,-122.73159676,0.00025307,2]
[425834149,1781961046000,-155.0,0.00025,2]
[425834148,1781961046000,-190.81065129,0.00025,2]
[425834146,1781961046000,-322.0,0.00025,2]
[425834147,1781961046000,-479.0,0.00025,2]
[425834141,1781961046000,-187.78006524,0.0002484,2]
[425834145,1781961046000,-1406.98985117,0.00024962,2]
[425834144,1781961046000,-150.0,0.0002485,2]
[425834143,1781961046000,-151.0,0.0002484,2]
[425834151,1781961046000,-164.08,0.00025,2]
[425834172,1781961047000,-200.0,0.00025899,2]
[425834171,1781961047000,-1510.05,0.00025786,2]
[425834173,1781961047000,-201.93286099,0.00025936,2]
[425834170,1781961047000,-19685.52,0.00025786,2]
[425834167,1781961047000,-176.2,0.00025743,7]
[425834163,1781961047000,-2136.55,0.00025448,2]
[425834168,1781961047000,-534.23,0.00025786,2]
[425834165,1781961047000,-4451.32747084,0.00025686,2]
[425834164,1781961047000,-4573.03407137,0.00025448,2]
[425834166,1781961047000,-158.25,0.00025743,7]
[425834174,1781961047000,-151.13162861,0.00025936,2]
[425834169,1781961047000,-1837.48,0.00025786,2]
[425834176,1781961047000,-250.0,0.00025946,2]
[425834162,1781961047000,-160.0,0.00024657,2]
[425834177,1781961047000,-248.831,0.00025946,2]
[425834175,1781961047000,-250.0,0.00025946,2]
[425834190,1781961047000,-10724.95692339,0.00026247,2]
[425834189,1781961047000,-1200.0,0.00026247,2]
[425834187,1781961047000,-2451.57068516,0.00026247,2]
[425834186,1781961047000,-9324.92658411,0.00026247,2]
[425834184,1781961047000,-920.6106698,0.00026247,2]
[425834188,1781961047000,-2831.02440824,0.00026247,2]
[425834183,1781961047000,-1079.3893302,0.00026247,2]
[425834182,1781961047000,-152.0,0.00026185,3]
[425834180,1781961047000,-276.0,0.000261,2]
[425834181,1781961047000,-386.0,0.000261,2]
[425834178,1781961047000,-168.06,0.00025946,2]
[425834179,1781961047000,-150.0,0.00026093,2]
[425834185,1781961047000,-3170.35668022,0.00026247,2]
[425834192,1781961917000,166.66,0.0002199,30]
[425834193,1781962006000,-535.34946875,0.00016709,2]
[425834194,1781962006000,-17.37898149,0.00016709,2]
[425834230,1781962232000,-153.0,0.00016711,2]
[425834229,1781962232000,-150.0,0.00016711,2]
[425834223,1781962232000,-151.0,0.0001671,2]
[425834225,1781962232000,-151.0,0.0001671,2]
[425834224,1781962232000,-153.0,0.0001671,2]
[425834228,1781962232000,-151.0,0.00016711,2]
[425834226,1781962232000,-152.0,0.00016711,2]
[425834227,1781962232000,-152.0,0.00016711,2]
[425834234,1781962232000,-168.55,0.00016712,2]
[425834231,1781962232000,-151.0,0.00016711,2]
[425834235,1781962232000,-151.0,0.00016712,2]
[425834241,1781962232000,-151.0,0.00016712,2]
[425834233,1781962232000,-153.0,0.00016711,2]
[425834240,1781962232000,-150.0,0.00016712,2]
[425834237,1781962232000,-151.0,0.00016712,2]
[425834222,1781962232000,-151.0,0.0001671,2]
[425834239,1781962232000,-150.0,0.00016712,2]
[425834232,1781962232000,-152.0,0.00016711,2]
[425834220,1781962232000,-152.0,0.0001671,2]
[425834213,1781962232000,-150.0,0.00016709,2]
[425834219,1781962232000,-151.0,0.0001671,2]
[425834207,1781962232000,-150.0,0.00016709,2]
[425834205,1781962232000,-155.62868251,0.00016708,2]
[425834203,1781962232000,-164.985371,0.00016708,2]
[425834206,1781962232000,-152.0,0.00016708,2]
[425834202,1781962232000,-151.0,0.00016708,2]
[425834204,1781962232000,-150.0,0.00016708,2]
[425834208,1781962232000,-53.76236739,0.00016709,2]
[425834210,1781962232000,-152.0,0.00016709,2]
[425834209,1781962232000,-96.23763261,0.00016709,2]
[425834212,1781962232000,-61.3746196,0.00016709,2]
[425834211,1781962232000,-91.6253804,0.00016709,2]
[425834214,1781962232000,-127.2053804,0.00016709,2]
[425834215,1781962232000,-23.7946196,0.00016709,2]
[425834238,1781962232000,-152.0,0.00016712,2]
[425834218,1781962232000,-442.33561782,0.00016709,2]
[425834216,1781962232000,-151.0,0.00016709,2]
[425834217,1781962232000,-393.26453528,0.00016709,2]
[425834221,1781962232000,-151.0,0.0001671,2]
[425834236,1781962232000,-152.0,0.00016712,2]
[425834267,1781962232000,-151.0,0.0001719,2]
[425834244,1781962232000,-152.0,0.00016714,2]
[425834273,1781962232000,-245.0,0.0002,2]
[425834274,1781962232000,-333.0,0.0002,2]
[425834271,1781962232000,-153.0,0.0002,2]
[425834269,1781962232000,-250.0,0.00018379,2]
[425834272,1781962232000,-504.0,0.0002,2]
[425834270,1781962232000,-167.58292263,0.000192,2]
[425834266,1781962232000,-135.99573116,0.0001719,2]
[425834268,1781962232000,-151.0,0.0001719,2]
[425834275,1781962232000,-166.66,0.00020683,2]
[425834280,1781962232000,-145.1769949,0.00021,2]
[425834277,1781962232000,-250.0,0.00020985,2]
[425834278,1781962232000,-153.0,0.00021,2]
[425834279,1781962232000,-245.0,0.00021,2]
[425834276,1781962232000,-150.0,0.00020985,2]
[425834282,1781962232000,-166.66,0.00021119,2]
[425834281,1781962232000,-187.8230051,0.00021,2]
[425834242,1781962232000,-151.0,0.00016712,2]
[425834265,1781962232000,-17.00426884,0.0001719,2]
[425834261,1781962232000,-151.0,0.00017189,2]
[425834283,1781962232000,-83.9169949,0.00021122,2]
[425834260,1781962232000,-151.0,0.00017189,2]
[425834246,1781962232000,-150.0,0.00016739,2]
[425834250,1781962232000,-152.0,0.00017188,2]
[425834248,1781962232000,-127.16398027,0.00017188,2]
[425834243,1781962232000,-151.0,0.00016713,2]
[425834247,1781962232000,-151.0,0.00016824,2]
[425834257,1781962232000,-151.0,0.00017188,2]
[425834249,1781962232000,-22.83601973,0.00017188,2]
[425834252,1781962232000,-150.0,0.00017188,2]
[425834251,1781962232000,-151.0,0.00017188,2]
[425834245,1781962232000,-152.0,0.00016719,2]
[425834264,1781962232000,-151.0,0.00017189,2]
[425834253,1781962232000,-153.0,0.00017188,2]
[425834255,1781962232000,-49.18728185,0.00017188,2]
[425834256,1781962232000,-101.81271815,0.00017188,2]
[425834263,1781962232000,-151.0,0.00017189,2]
[425834262,1781962232000,-151.0,0.00017189,2]
[425834258,1781962232000,-151.0,0.00017188,2]
[425834259,1781962232000,-151.0,0.00017189,2]
[425834254,1781962232000,-152.0,0.00017188,2]
[425834303,1781962238000,-6279.48720301,0.00021273,2]
[425834301,1781962238000,-4135.41251223,0.00021273,2]
[425834302,1781962238000,-1162.86020826,0.00021273,2]
[425834296,1781962238000,-279.33883483,0.00021122,2]
[425834300,1781962238000,-791.14857175,0.00021273,2]
[425834298,1781962238000,-98.74417027,0.00021122,2]
[425834299,1781962238000,-504.0,0.00021176,3]
[425834304,1781962238000,-657.49480661,0.00021273,2]
[425834307,1781962238000,-152.21,0.00021651,2]
[425834305,1781962238000,-510.51669814,0.00021273,2]
[425834309,1781962238000,-300.0,0.00022,2]
[425834313,1781962238000,-197.36683938,0.00022,2]
[425834310,1781962238000,-48.40799053,0.00022,2]
[425834312,1781962238000,-245.0,0.00022,2]
[425834308,1781962238000,-166.69531133,0.00021706,2]
[425834311,1781962238000,-107.59200947,0.00022,2]
[425834306,1781962238000,-166.66,0.00021554,2]
[425834524,1781962240000,-500.0,0.00022856,2]
[425834522,1781962240000,-151.0,0.00022856,2]
[425834520,1781962240000,-151.0,0.00022856,2]
[425834518,1781962240000,-500.0,0.00022856,2]
[425834516,1781962240000,-151.0,0.00022856,2]
[425834505,1781962240000,-500.0,0.00022821,2]
[425834510,1781962240000,-120.47098282,0.00022821,2]
[425834503,1781962240000,-150.0,0.0002254,2]
[425834514,1781962240000,-151.0,0.00022856,2]
[425834512,1781962240000,-578.20924308,0.00022856,2]
[425834497,1781962240000,-135.63316062,0.00022,2]
[425834508,1781962240000,-379.52901718,0.00022821,2]
[425834499,1781962240000,-504.0,0.00022353,4]
[425834529,1781962240000,-151.13162861,0.00022856,2]
[425834501,1781962240000,-166.66,0.00022425,30]
[425834527,1781962240000,-152.0,0.00022856,2]
[425834551,1781962240000,-500.0,0.00022856,2]
[425834531,1781962240000,-500.0,0.00022856,2]
[425834541,1781962240000,-500.0,0.00022856,2]
[425834600,1781962240000,-152.0,0.00022856,2]
[425834598,1781962240000,-151.0,0.00022856,2]
[425834595,1781962240000,-500.0,0.00022856,2]
[425834593,1781962240000,-328.0246707,0.00022856,2]
[425834549,1781962240000,-500.0,0.00022856,2]
[425834555,1781962240000,-152.0,0.00022856,2]
[425834553,1781962240000,-151.0,0.00022856,2]
[425834557,1781962240000,-171.9753293,0.00022856,2]
[425834544,1781962240000,-508.60328806,0.00022856,2]
[425834542,1781962240000,-152.0,0.00022856,2]
[425834547,1781962240000,-212.52436728,0.00022856,2]
[425834539,1781962240000,-151.0,0.00022856,2]
[425834535,1781962240000,-152.0,0.00022856,2]
[425834533,1781962240000,-500.0,0.00022856,2]
[425834537,1781962240000,-500.0,0.00022856,2]
[425834663,1781962241000,-151.0,0.00023021,2]
[425834636,1781962241000,-151.0,0.00022856,2]
[425834650,1781962241000,-166.66,0.00022861,30]
[425834652,1781962241000,-151.0,0.00022911,2]
[425834665,1781962241000,-151.0,0.00023076,2]
[425834638,1781962241000,-152.0,0.00022856,2]
[425834654,1781962241000,-151.0,0.00022966,2]
[425834674,1781962241000,-151.0,0.00023296,2]
[425834669,1781962241000,-151.0,0.00023186,2]
[425834659,1781962241000,-245.0,0.00023,2]
[425834657,1781962241000,-1800.0,0.00023,2]
[425834661,1781962241000,-333.0,0.00023,2]
[425834672,1781962241000,-151.0,0.00023241,2]
[425834640,1781962241000,-152.0,0.00022856,2]
[425834676,1781962241000,-151.0,0.00023351,2]
[425834678,1781962241000,-151.0,0.00023406,2]
[425834667,1781962241000,-151.0,0.00023131,2]
[425834648,1781962241000,-500.0,0.00022856,2]